bitfinex/quotes_ETHUSD_20220731
["timestamp","ask_amount","ask_price","bid_price","bid_amount"]
[1659249493185,0.01250214,1699.8,1699.2,7.5743]
[1659249493387,0.01250214,1699.8,1699.2,11.40651221]
[1659249494614,0.01250214,1699.8,1699.2,7.90651221]
[1659249495222,0.01250214,1699.8,1699.2,11.52910432]
[1659249495406,0.01250214,1699.8,1699.3,3.5]
[1659249495591,0.01250214,1699.8,1699.2,11.52910432]
[1659249495793,0.01250214,1699.8,1699.2,8.02910432]
[1659249496420,0.01250214,1699.8,1699.2,11.52910432]
[1659249496607,0.01250214,1699.8,1699.2,8.02910432]
[1659249496806,0.01250214,1699.8,1699.2,11.52910432]
[1659249497007,3.65,1699.9,1699.6,0.12259211]
[1659249497347,3.0,1699.8,1699.6,0.45480432]
[1659249497552,3.3,1699.8,1699.6,0.45480432]
[1659249497758,3.0,1699.7,1699.6,0.45480432]
[1659249498211,3.6,1700.0,1699.6,0.45480432]
[1659249500916,2.89804672,1699.9,1699.6,0.45480432]
[1659249501117,5.8802169,1699.9,1699.3,6.2925]
[1659249501362,5.8802169,1699.9,1699.3,6.2425]
[1659249501717,2.89804672,1699.9,1699.3,6.2425]
[1659249503234,2.89804672,1699.9,1699.3,6.57471221]
[1659249503618,2.89804672,1699.9,1699.3,10.07471221]
[1659249504862,2.91054886,1699.9,1699.3,6.57471221]
[1659249505647,2.91054886,1699.9,1699.3,10.07471221]
[1659249508753,2.91054886,1699.9,1699.4,3.5]
[1659249508754,0.01250214,1699.9,1699.4,3.5]
[1659249508979,3.6,1700.0,1699.5,0.33221221]
[1659249510352,3.6,1700.0,1699.5,0.32881764]
[1659249510766,3.6,1700.0,1699.5,3.82881764]
[1659249511557,3.6,1700.0,1699.5,0.32881764]
[1659249525542,3.6158967,1700.0,1699.5,0.32881764]
[1659249535603,3.3057,1700.1,1699.6,0.12259211]
[1659249535906,3.3057,1700.1,1699.7,0.32881764]
[1659249536088,3.3057,1700.1,1699.7,3.82649846]
[1659249536268,3.3057,1700.1,1699.7,0.32649846]
[1659249536472,0.17535904,1700.2,1699.7,0.32649846]
[1659249536668,18.1301,1700.3,1699.7,3.33709846]
[1659249536669,17.9736,1700.3,1699.7,3.33709846]
[1659249536978,18.69014672,1700.3,1699.7,3.33709846]
[1659249537210,18.69014672,1700.3,1699.7,6.83709846]
[1659249537211,3.0,1700.2,1699.7,6.83709846]
[1659249538460,3.0,1700.2,1699.7,3.33709846]
[1659249539299,3.0,1700.2,1699.7,6.83709846]
[1659249539671,3.0,1700.2,1699.7,3.33709846]
[1659249541063,3.0,1700.2,1699.7,6.83709846]
[1659249541262,3.0,1700.2,1699.7,3.33709846]
[1659249542123,3.0,1700.2,1699.5,0.05]
[1659249542124,2.89804672,1700.1,1699.5,0.05]
[1659249542411,2.89804672,1700.1,1699.4,0.4418]
[1659249542412,3.3,1700.0,1699.3,0.05]
[1659249542579,6.37403108,1700.0,1699.2,14.1976]
[1659249542793,6.37403108,1700.0,1699.2,17.04564672]
[1659249542794,3.59980024,1699.9,1699.2,17.04564672]
[1659249542979,3.59980024,1699.9,1699.2,17.37214518]
[1659249543181,9.09980024,1699.9,1699.2,17.37214518]
[1659249543826,9.09980024,1699.9,1699.3,3.5]
[1659249544023,3.42381588,1699.9,1699.4,0.32649846]
[1659249545592,3.0,1699.8,1699.4,0.32649846]
[1659249546302,3.6,1699.8,1699.4,0.32649846]
[1659249547407,6.49804672,1699.8,1699.4,0.32649846]
[1659249547625,6.49804672,1699.8,1699.2,13.7058]
[1659249547786,6.49804672,1699.8,1699.2,17.2058]
[1659249548635,6.49804672,1699.8,1699.2,17.53229846]
[1659249549285,6.43904672,1699.7,1699.2,0.32649846]
[1659249549510,2.89804672,1699.6,1699.2,0.32649846]
[1659249549915,5.95894672,1699.6,1699.2,0.32649846]
[1659249550768,6.25894672,1699.6,1699.2,0.32649846]
[1659249552958,9.75894672,1699.6,1698.9,13.1729]
[1659249553127,10.05894672,1699.6,1698.9,13.1229]
[1659249553530,10.05894672,1699.6,1698.9,13.44939846]
[1659249553731,10.05894672,1699.6,1698.8,0.05]
[1659249553732,12.39631765,1699.5,1698.8,0.05]
[1659249554015,0.07740789,1699.2,1698.7,0.05]
[1659249554160,3.541,1699.0,1698.5,0.05]
[1659249554368,2.89804672,1698.9,1698.3,3.5137381]
[1659249554568,3.19804672,1698.9,1698.3,3.0216381]
[1659249554874,3.0,1698.8,1698.3,3.34813656]
[1659249555084,3.0,1698.8,1698.3,3.14699846]
[1659249555966,3.0,1698.8,1698.3,6.04504518]
[1659249556134,0.61821588,1698.9,1698.4,3.5]
[1659249556334,0.31821588,1698.9,1698.3,9.98714518]
[1659249556566,3.2162626,1698.9,1698.3,6.64699846]
[1659249556736,3.0,1698.8,1698.3,6.64699846]
[1659249557137,3.0,1698.8,1698.3,9.54504518]
[1659249557358,0.31821588,1698.9,1698.3,6.04504518]
[1659249557561,0.31821588,1698.9,1698.3,3.14699846]
[1659249558347,3.29367049,1698.9,1698.3,3.14699846]
[1659249558548,3.0,1698.8,1698.3,3.14699846]
[1659249560396,3.29625632,1698.8,1698.3,3.14699846]
[1659249567034,3.29625632,1698.8,1698.3,6.64699846]
[1659249567648,3.0,1698.8,1698.3,6.64699846]
[1659249568339,3.0,1698.8,1698.3,3.14699846]
[1659249572157,3.0,1698.8,1698.3,6.64699846]
[1659249572565,3.0,1698.8,1698.3,3.14699846]
[1659249575136,3.0,1698.8,1698.3,6.64699846]
[1659249575578,3.0,1698.8,1698.3,3.14699846]
[1659249577243,5.88285195,1698.7,1698.3,0.32649846]
[1659249578446,2.89804672,1698.7,1698.3,0.32649846]
[1659249583898,2.89591622,1698.7,1698.3,0.32649846]
[1659249586281,3.19591622,1698.7,1698.2,3.2422]
[1659249586498,3.0,1698.6,1698.2,3.2422]
[1659249588131,3.3,1698.6,1698.2,3.2422]
[1659249588335,6.19804672,1698.6,1698.2,3.2422]
[1659249590114,6.2162626,1698.6,1698.2,3.2422]
[1659249593800,3.31821588,1698.6,1698.2,3.2422]
[1659249595795,0.31821588,1698.6,1698.2,3.2422]
[1659249596081,0.01821588,1698.6,1698.2,3.2422]
[1659249600343,3.6,1698.7,1698.3,0.32649846]
[1659249602277,3.0,1698.7,1698.3,0.32649846]
[1659249602483,3.4376,1698.8,1698.3,0.76859846]
[1659249604566,3.4376,1698.8,1698.4,3.5]
[1659249604748,3.4376,1698.8,1698.3,3.94909057]
[1659249605179,3.4376,1698.8,1698.3,3.94576895]
[1659249605350,3.4376,1698.8,1698.3,0.44576895]
[1659249605551,3.4376,1698.8,1698.3,3.94576895]
[1659249605779,3.4376,1698.8,1698.3,0.44576895]
[1659249606182,3.4376,1698.8,1698.3,3.94576895]
[1659249606589,0.05,1699.0,1698.7,0.12259211]
[1659249606795,0.47206135,1699.1,1698.7,0.12259211]
[1659249606796,0.47206135,1699.1,1698.9,3.82259211]
[1659249606964,0.05,1699.4,1699.0,10.14959044]
[1659249607162,0.05,1699.7,1699.1,6.39804672]
[1659249607363,0.47206135,1699.8,1699.4,0.12259211]
[1659249607581,0.47206135,1699.9,1699.3,3.5]
[1659249607784,0.47206135,1699.9,1699.2,6.3461]
[1659249607994,0.47206135,1699.9,1699.2,2.8461]
[1659249607995,0.47538298,1699.9,1699.2,2.8461]
[1659249608559,0.47538298,1699.9,1699.3,0.34139272]
[1659249609463,0.47538298,1699.9,1699.3,3.84139272]
[1659249610165,0.30332163,1699.9,1699.3,3.84139272]
[1659249610366,3.60332163,1699.9,1699.3,3.84139272]
[1659249611205,3.60332163,1699.9,1699.4,0.11490476]
[1659249611405,6.50136835,1699.9,1699.4,0.11490476]
[1659249611780,0.00332163,1699.9,1699.5,0.34139272]
[1659249611981,7.10446135,1700.1,1699.5,0.34139272]
[1659249611982,7.05446135,1700.1,1699.6,0.11490476]
[1659249612162,2.89804672,1700.0,1699.6,0.11490476]
[1659249612563,1.0,1700.1,1699.6,0.11490476]
[1659249613179,4.6,1700.1,1699.6,0.11490476]
[1659249615207,4.6,1700.1,1699.7,0.34139272]
[1659249615565,1.6,1700.1,1699.7,0.34139272]
[1659249616175,3.2422,1700.3,1699.7,0.34139272]
[1659249616377,6.14024672,1700.3,1699.7,0.34139272]
[1659249616776,6.31635036,1700.3,1699.7,0.34139272]
[1659249617572,3.0,1700.2,1699.7,0.34139272]
[1659249619508,2.89804672,1700.1,1699.7,0.34139272]
[1659249619708,6.61503108,1700.1,1699.4,3.3765]
[1659249619922,9.43904672,1700.0,1699.4,3.3265]
[1659249620142,2.89804672,1699.9,1699.4,3.3265]
[1659249620341,3.0,1699.8,1699.4,3.3265]
[1659249625034,3.541,1699.6,1699.1,0.05]
[1659249625241,9.43904672,1699.5,1698.9,0.05]
[1659249625418,9.43904672,1699.5,1698.9,3.84139272]
[1659249625419,6.19804672,1699.5,1698.9,3.84139272]
[1659249628065,6.19804672,1699.5,1698.9,0.34139272]
[1659249628267,6.19804672,1699.5,1698.9,3.84139272]
[1659249629913,3.0,1699.5,1698.9,3.84139272]
[1659249630357,3.0,1699.5,1698.9,6.73557451]
[1659249630911,3.0,1699.5,1699.0,0.00909654]
[1659249631213,3.0,1699.5,1699.0,6.82029819]
[1659249631607,3.0,1699.5,1699.0,3.32029819]
[1659249634157,8.3235,1699.6,1699.1,0.33752779]
[1659249635027,8.0235,1699.6,1699.1,0.33752779]
[1659249635233,7.7235,1699.6,1699.1,0.33752779]
[1659249637355,4.0,1699.7,1699.1,0.33752779]
[1659249637536,4.0,1699.7,1699.1,3.23557451]
[1659249637537,4.6,1699.7,1699.1,3.23557451]
[1659249639652,4.60718656,1699.7,1699.1,3.23557451]
[1659249641450,1.00718656,1699.7,1699.1,3.23557451]
[1659249641659,3.0318,1699.8,1699.2,0.4418]
[1659249644628,3.03898656,1699.8,1699.2,0.4418]
[1659249646776,3.03898656,1699.8,1699.3,0.33752779]
[1659249650896,6.43904672,1699.7,1699.1,6.3097]
[1659249651202,6.43904672,1699.7,1699.1,5.8178]
[1659249651918,6.43904672,1699.7,1699.1,9.46613982]
[1659249652295,6.43904672,1699.7,1699.1,9.46322262]
[1659249653738,6.43904672,1699.7,1699.1,6.15241059]
[1659249654704,6.44623328,1699.7,1699.1,6.15241059]
[1659249656102,2.90523328,1699.7,1699.1,6.15241059]
[1659249657432,0.00718656,1699.7,1699.1,6.15241059]
[1659249660545,0.00718656,1699.7,1699.1,6.59431059]
[1659249666184,0.00718656,1699.7,1699.1,6.15241059]
[1659249677584,3.30718656,1699.7,1699.1,6.15241059]
[1659249693188,3.30718656,1699.7,1699.3,0.12259211]
[1659249693396,3.00718656,1699.7,1699.3,3.35435688]
[1659249693566,1.52206135,1699.9,1699.3,3.35435688]
[1659249693567,0.05,1699.9,1699.5,0.11878237]
[1659249693744,0.47206135,1700.1,1699.6,2.89804672]
[1659249693944,0.47206135,1700.2,1699.6,3.33974672]
[1659249694182,0.47206135,1700.2,1699.7,2.89804672]
[1659249695276,1.07206135,1700.2,1699.7,2.89804672]
[1659249695680,0.3,1700.2,1699.7,2.89804672]
[1659249695890,1.24484336,1700.3,1699.7,2.89804672]
[1659249697284,0.00718656,1700.2,1699.7,2.89804672]
[1659249697497,0.0048909,1700.2,1699.7,2.89804672]
[1659249697660,0.0048909,1700.2,1699.6,0.77922779]
[1659249697863,0.0048909,1700.2,1699.6,0.33752779]
[1659249697864,6.44393762,1700.2,1699.6,0.33752779]
[1659249698062,3.0,1700.1,1699.6,0.33752779]
[1659249698264,3.3,1700.1,1699.6,0.33752779]
[1659249700374,3.3,1700.1,1699.5,2.7188]
[1659249701021,0.0048909,1700.0,1699.5,2.7188]
[1659249702580,2.90293762,1700.0,1699.5,2.7188]
[1659249702780,2.90293762,1700.0,1699.4,3.5]
[1659249703006,0.0048909,1700.0,1699.4,3.5]
[1659249703212,0.0048909,1700.0,1699.5,3.64927253]
[1659249704025,0.0048909,1700.0,1699.5,0.33982345]
[1659249707140,0.0048909,1700.0,1699.5,3.43542345]
[1659249708887,2.89804672,1699.9,1699.5,0.33982345]
[1659249709054,3.3,1699.8,1699.3,2.9101]
[1659249709263,6.49804672,1699.8,1699.3,2.9101]
[1659249709571,3.6,1699.8,1699.3,6.4101]
[1659249709771,3.0,1699.7,1699.3,6.4101]
[1659249709951,3.0,1699.7,1699.3,5.9369]
[1659249710155,3.3,1699.7,1699.3,5.9369]
[1659249710390,3.3,1699.7,1699.3,9.4369]
[1659249710596,3.6,1699.8,1699.3,9.4369]
[1659249710752,3.6,1699.8,1699.3,9.77672345]
[1659249711196,3.6,1699.8,1699.4,3.5]
[1659249711395,1.35,1700.0,1699.4,6.39804672]
[1659249711684,1.6,1700.0,1699.5,0.33982345]
[1659249711892,4.6,1700.0,1699.5,0.33982345]
[1659249713382,4.52162826,1700.0,1699.5,0.33982345]
[1659249713586,4.52162826,1700.0,1699.5,0.35426796]
[1659249714179,4.52162826,1700.0,1699.5,3.85426796]
[1659249714388,4.52162826,1700.0,1699.5,0.35426796]
[1659249714592,4.52162826,1700.0,1699.5,3.38776796]
[1659249721187,4.47162826,1700.0,1699.5,3.38776796]
[1659249728935,4.47162826,1700.0,1699.5,6.88776796]
[1659249729109,4.47162826,1700.0,1699.5,3.38776796]
[1659249735079,4.94368961,1700.0,1699.5,3.38776796]
[1659249736648,3.541,1699.8,1699.3,0.05]
[1659249736980,3.541,1699.8,1699.1,0.05]
[1659249736981,0.08121763,1699.6,1699.1,0.05]
[1659249737191,6.73904672,1699.5,1698.9,0.05]
[1659249737393,12.64434672,1699.4,1698.7,0.05]
[1659249737549,2.89804672,1699.3,1698.6,3.1181]
[1659249737747,3.0,1699.2,1698.6,3.0681]
[1659249738425,3.0,1699.2,1698.6,3.40792345]
[1659249739293,3.0,1699.2,1698.6,3.50868926]
[1659249739494,3.0048909,1699.2,1698.6,3.50868926]
[1659249741242,3.0048909,1699.2,1698.6,3.45868926]
[1659249743669,5.90293762,1699.2,1698.6,3.45868926]
[1659249744439,5.98415525,1699.2,1698.6,3.45868926]
[1659249745046,6.28415525,1699.2,1698.6,3.45868926]
[1659249745377,6.20293762,1699.2,1698.6,3.45868926]
[1659249745580,3.541,1699.3,1698.7,3.5]
[1659249745928,6.43904672,1699.3,1698.8,0.33982345]
[1659249746774,3.0,1699.2,1698.8,0.33982345]
[1659249761307,2.90293762,1699.3,1698.8,0.33982345]
[1659249761672,2.90293762,1699.3,1698.9,0.00845222]
[1659249764811,2.90293762,1699.3,1698.9,0.00596509]
[1659249765491,9.42314881,1699.2,1698.9,0.00596509]
[1659249766096,2.89804672,1699.2,1698.9,0.00596509]
[1659249773860,6.44393762,1699.3,1698.9,0.00596509]
[1659249774014,3.20293762,1699.3,1698.9,0.00596509]
[1659249774220,3.50293762,1699.3,1698.9,0.00596509]
[1659249775761,0.3048909,1699.3,1698.9,0.00596509]
[1659249775916,3.3048909,1699.3,1698.9,0.00596509]
[1659249776983,0.08121763,1699.0,1698.6,0.05]
[1659249777221,2.89804672,1698.9,1698.3,3.1976]
[1659249777505,6.43904672,1698.9,1698.2,5.9066]
[1659249777704,2.89804672,1698.8,1698.2,5.9066]
[1659249777903,2.89804672,1698.8,1698.2,6.24642345]
[1659249779602,6.44642475,1698.8,1698.2,6.24642345]
[1659249779859,2.89804672,1698.7,1698.2,6.24642345]
[1659249788194,2.89804672,1698.7,1698.2,6.24318111]
[1659249789360,6.43904672,1698.7,1698.1,0.4421]
[1659249789571,6.43904672,1698.6,1698.0,0.6]
[1659249789784,2.89804672,1698.5,1698.0,0.3]
[1659249791361,2.89804672,1698.5,1698.1,0.33982345]
[1659249791565,2.94804672,1698.7,1698.1,4.15860582]
[1659249791762,2.89804672,1698.7,1698.1,4.09272345]
[1659249792162,2.89804672,1698.7,1698.1,3.65062345]
[1659249792705,2.89804672,1698.7,1698.1,7.15062345]
[1659249792904,2.90542475,1698.7,1698.1,3.65062345]
[1659249795093,2.90542475,1698.7,1698.1,7.15062345]
[1659249795297,2.90542475,1698.7,1698.1,3.65062345]
[1659249799037,2.90542475,1698.7,1698.1,7.15062345]
[1659249799214,2.90542475,1698.7,1698.1,3.65062345]
[1659249802212,7.90542475,1698.7,1698.1,3.65062345]
[1659249803810,6.43904672,1698.6,1698.1,3.65062345]
[1659249804148,2.89804672,1698.5,1698.1,3.65062345]
[1659249806770,2.89804672,1698.5,1698.1,3.3108]
[1659249807669,2.90542475,1698.5,1698.1,3.3108]
[1659249808218,2.90542475,1698.5,1698.0,0.3]
[1659249808219,5.88337952,1698.4,1698.0,0.3]
[1659249808843,2.89804672,1698.4,1698.0,0.3]
[1659249811224,6.43904672,1698.4,1698.0,0.3]
[1659249811425,6.43904672,1698.3,1698.0,0.3]
[1659249811623,2.89804672,1698.2,1698.0,0.3]
[1659249812064,2.89804672,1698.2,1698.0,0.29640893]
[1659249812266,6.43904672,1698.2,1698.0,0.29640893]
[1659249812456,7.76021763,1698.1,1698.0,0.29640893]
[1659249812624,26.31630086,1698.1,1698.0,0.00040893]
[1659249812826,0.08121763,1697.7,1697.5,0.20123503]
[1659249813067,0.08121763,1697.7,1697.4,5.71864826]
[1659249813068,2.89804672,1697.6,1697.4,5.71864826]
[1659249813270,6.43904672,1697.6,1697.4,5.71864826]
[1659249813424,4.15826435,1697.5,1697.4,5.71864826]
[1659249813685,10.69926435,1697.5,1697.4,5.71864826]
[1659249813885,10.69926435,1697.5,1697.2,0.0020764]
[1659249814126,2.89804672,1697.4,1696.9,3.23604179]
[1659249814333,2.89804672,1697.4,1696.9,3.1158]
[1659249814883,2.97926435,1697.4,1696.9,3.1158]
[1659249815112,0.00737803,1697.3,1696.9,3.1158]
[1659249815318,2.89804672,1697.2,1696.8,11.5]
[1659249815695,2.90542475,1697.2,1696.8,11.5]
[1659249816931,2.98664238,1697.2,1696.8,11.5]
[1659249819935,2.98664238,1697.2,1696.8,15.0]
[1659249819936,2.90542475,1697.2,1696.8,15.0]
[1659249820146,4.591,1697.4,1696.9,3.5]
[1659249820443,11.2856,1697.5,1696.9,3.5]
[1659249820599,11.2856,1697.5,1696.9,3.83982345]
[1659249820600,14.18364672,1697.5,1696.9,3.83982345]
[1659249820803,2.89804672,1697.4,1696.9,3.83982345]
[1659249821044,2.89804672,1697.4,1696.9,0.33982345]
[1659249821483,6.43904672,1697.4,1696.9,0.33982345]
[1659249821637,2.89804672,1697.3,1696.9,0.33982345]
[1659249822285,2.89804672,1697.3,1696.8,14.3814]
[1659249823571,0.00737803,1697.2,1696.8,14.3814]
[1659249824539,2.90542475,1697.2,1696.8,14.3814]
[1659249826582,2.98664238,1697.2,1696.8,14.3814]
[1659249827375,2.89804672,1697.1,1696.8,11.5]
[1659249827938,6.43904672,1697.1,1696.8,11.5]
[1659249828139,2.89484667,1697.0,1696.8,11.5]
[1659249828375,2.89484667,1697.0,1696.5,3.4534]
[1659249828594,2.89484667,1697.0,1696.5,3.0109]
[1659249829108,2.89484667,1697.0,1696.6,0.00218142]
[1659249829810,6.43584667,1697.0,1696.5,3.0109]
[1659249830014,2.89804672,1696.9,1696.5,3.0109]
[1659249830318,0.05,1697.2,1696.6,0.33982345]
[1659249830501,2.89804672,1697.2,1696.6,0.78232345]
[1659249831017,2.89804672,1697.2,1696.6,0.78447569]
[1659249831216,3.541,1697.1,1696.6,0.34197569]
[1659249831377,2.89804672,1697.0,1696.6,0.34197569]
[1659249831977,0.00737803,1697.1,1696.6,0.34197569]
[1659249832179,0.00737803,1697.1,1696.5,3.31388683]
[1659249832180,6.44642475,1697.1,1696.5,3.01388683]
[1659249832473,0.00737803,1697.1,1696.5,6.251757]
[1659249832616,0.22869872,1697.2,1696.6,0.4425]
[1659249832812,0.17869872,1697.2,1696.6,4.4425]
[1659249833013,8.5523,1697.3,1696.6,4.4425]
[1659249833220,11.45772475,1697.3,1696.6,4.78232345]
[1659249833391,8.74592475,1697.3,1696.6,7.53972345]
[1659249833601,8.74592475,1697.3,1696.6,7.83972345]
[1659249833843,8.74592475,1697.3,1696.6,11.33972345]
[1659249834283,8.74592475,1697.3,1696.6,7.83972345]
[1659249834683,8.74592475,1697.3,1696.6,7.78972345]
[1659249835127,2.89804672,1697.2,1696.6,8.38032345]
[1659249835418,5.88513942,1697.2,1696.6,7.88032345]
[1659249835626,2.89804672,1697.2,1696.6,7.43782345]
[1659249836356,2.89804672,1697.2,1696.6,3.93782345]
[1659249838551,2.89804672,1697.2,1696.6,3.34722345]
[1659249838716,6.43904672,1697.2,1696.6,3.34722345]
[1659249839059,9.3405,1697.3,1696.6,3.34722345]
[1659249839060,6.43904672,1697.1,1696.6,3.34722345]
[1659249839215,6.43904672,1697.1,1696.6,3.09722345]
[1659249839417,6.44642475,1697.1,1696.6,3.09722345]
[1659249840557,6.44642475,1697.1,1696.6,6.59722345]
[1659249840732,6.44642475,1697.1,1696.6,3.09722345]
[1659249841615,2.90542475,1697.1,1696.6,3.09722345]
[1659249842055,0.00737803,1697.1,1696.6,3.09722345]
[1659249842263,0.00737803,1697.1,1696.6,3.53972345]
[1659249842754,2.89804672,1697.0,1696.6,2.7574]
[1659249843232,2.89804672,1697.0,1696.5,3.0109]
[1659249843435,6.43904672,1697.0,1696.5,3.0109]
[1659249843778,2.89804672,1696.9,1696.5,3.0109]
[1659249846483,6.43904672,1697.0,1696.5,3.0109]
[1659249847554,2.90542475,1696.9,1696.5,3.0109]
[1659249851104,0.00737803,1696.9,1696.5,6.5109]
[1659249851342,0.22782968,1697.2,1696.8,0.11878237]
[1659249851343,0.05,1697.2,1696.8,0.11878237]
[1659249851547,2.89804672,1697.1,1696.8,0.11878237]
[1659249852743,2.89804672,1697.2,1696.8,0.11878237]
[1659249853099,2.89804672,1697.2,1696.6,0.33982345]
[1659249853953,8.73854672,1697.3,1696.6,0.34197569]
[1659249854513,8.73854672,1697.3,1696.6,6.75627569]
[1659249854716,2.90542475,1697.2,1696.6,3.25627569]
[1659249855436,5.8856678,1697.1,1696.6,3.25627569]
[1659249855632,2.89804672,1697.1,1696.6,3.25627569]
[1659249856451,6.44642475,1697.2,1696.6,3.25627569]
[1659249856821,2.89804672,1697.1,1696.6,3.25627569]
[1659249857451,0.0048909,1697.0,1696.6,3.25627569]
[1659249857650,0.00737803,1697.0,1696.6,3.25627569]
[1659249858067,0.00497055,1697.0,1696.6,3.25627569]
[1659249860821,0.00497055,1697.0,1696.8,0.11878237]
[1659249860822,0.00248342,1697.0,1696.8,0.11878237]
[1659249861023,12.2856,1697.5,1697.1,0.11878237]
[1659249861024,0.05,1697.4,1697.1,0.11878237]
[1659249861224,12.2856,1697.5,1696.8,0.4925]
[1659249861470,12.2856,1697.5,1696.9,0.11878237]
[1659249861974,12.2856,1697.5,1696.9,0.34223093]
[1659249862610,2.89804672,1697.4,1696.9,0.34223093]
[1659249862732,6.43904672,1697.4,1696.9,0.34223093]
[1659249862937,2.89804672,1697.3,1696.9,0.34223093]
[1659249863342,6.43904672,1697.4,1696.9,0.34223093]
[1659249864135,12.2856,1697.5,1696.9,0.34223093]
[1659249864136,12.2856,1697.5,1696.9,11.40878906]
[1659249864337,15.18364672,1697.5,1696.9,11.40878906]
[1659249864537,15.18861727,1697.5,1696.9,14.90878906]
[1659249864735,15.18861727,1697.5,1696.9,14.91094092]
[1659249865081,15.18861727,1697.5,1696.9,0.34438279]
[1659249865082,9.42613942,1697.4,1696.9,0.34438279]
[1659249865378,2.89804672,1697.3,1696.9,0.34438279]
[1659249865735,12.34057055,1697.5,1696.9,0.34438279]
[1659249865935,15.18861727,1697.5,1696.9,0.34438279]
[1659249867100,6.43904672,1697.4,1696.9,0.34438279]
[1659249867405,6.43904672,1697.2,1696.9,0.34438279]
[1659249867613,2.89804672,1697.1,1696.6,0.05]
[1659249867777,2.89804672,1697.1,1696.4,9.86398702]
[1659249868098,2.89804672,1697.1,1696.4,10.15621795]
[1659249868299,2.90301727,1697.1,1696.5,3.5]
[1659249868692,0.00497055,1697.1,1696.6,0.34223093]
[1659249869002,3.05,1697.3,1696.6,0.34223093]
[1659249869308,5.89804672,1697.3,1696.6,0.4610133]
[1659249869467,3.1492,1697.4,1696.6,3.80156002]
[1659249869667,6.34724672,1697.4,1697.0,0.11878237]
[1659249869972,6.29724672,1697.4,1697.0,0.11878237]
[1659249870785,6.29724672,1697.4,1696.9,0.34223093]
[1659249871016,0.00497055,1697.3,1696.9,0.34223093]
[1659249872786,9.3356,1697.5,1697.1,0.11878237]
[1659249873135,9.3356,1697.5,1697.2,0.34223093]
[1659249873136,1.0,1697.5,1697.2,0.34223093]
[1659249876329,8.0317,1697.7,1697.2,0.34223093]
[1659249876515,8.0317,1697.7,1697.3,0.11878237]
[1659249876707,9.233,1697.8,1697.4,0.34223093]
[1659249876708,3.1038,1697.8,1697.4,0.34223093]
[1659249876908,6.30184672,1697.8,1697.4,0.34223093]
[1659249877308,3.1038,1697.8,1697.4,0.34223093]
[1659249877946,1.0,1697.9,1697.5,0.11878237]
[1659249878280,8.0547,1698.0,1697.5,0.11878237]
[1659249879361,8.3547,1698.0,1697.5,0.11878237]
[1659249879536,8.3547,1698.0,1697.4,0.34223093]
[1659249879851,8.3547,1698.0,1697.4,3.58823093]
[1659249880052,8.3547,1698.0,1697.5,0.11878237]
[1659249880262,8.0547,1698.0,1697.5,0.11878237]
[1659249881571,3.541,1697.8,1697.3,0.05]
[1659249881776,3.541,1697.8,1697.1,3.6448]
[1659249881777,6.43904672,1697.7,1697.1,3.6448]
[1659249881947,2.89804672,1697.6,1697.1,3.5948]
[1659249885550,2.89804672,1697.6,1697.1,3.2948]
[1659249889091,2.89804672,1697.6,1697.2,0.34223093]
[1659249890824,3.07748269,1697.7,1697.2,0.34223093]
[1659249896576,2.90301727,1697.7,1697.2,0.34223093]
[1659249900707,2.90301727,1697.7,1697.2,6.34223093]
[1659249904111,2.90301727,1697.7,1697.2,6.3397868]
[1659249905523,0.00497055,1697.7,1697.2,6.3397868]
[1659249908654,0.00497055,1697.7,1697.4,0.11622882]
[1659249908820,0.05,1698.0,1697.8,0.70522882]
[1659249909013,0.88468614,1698.4,1697.8,0.11622882]
[1659249909014,0.52206135,1698.4,1697.8,0.11622882]
[1659249909249,0.52206135,1698.5,1697.8,0.11622882]
[1659249909408,0.24452821,1698.0,1697.8,0.11622882]
[1659249909609,0.24452821,1698.0,1697.9,0.3397868]
[1659249910551,0.24452821,1698.0,1697.8,3.2853]
[1659249911237,3.14257493,1698.0,1697.5,6.7808]
[1659249911445,3.14257493,1698.0,1697.5,5.9096]
[1659249913719,0.24452821,1698.0,1697.5,5.9096]
[1659249914567,0.24452821,1698.0,1697.5,5.8596]
[1659249918452,0.24452821,1698.0,1697.6,3.5]
[1659249918670,0.24452821,1698.0,1697.5,5.8596]
[1659249918839,0.24452821,1698.0,1697.5,5.85703444]
[1659249920605,0.24452821,1698.0,1697.5,9.35703444]
[1659249921010,0.24452821,1698.0,1697.5,21.32382522]
[1659249921208,0.24452821,1698.0,1697.5,6.41556326]
[1659249921580,0.24452821,1698.0,1697.5,5.97326326]
[1659249922171,0.24452821,1698.0,1697.5,9.47326326]
[1659249925210,6.68357493,1698.0,1697.5,9.47326326]
[1659249925406,2.98834397,1697.9,1697.5,5.85703444]
[1659249925621,2.98834397,1697.9,1697.5,3.0711]
[1659249925788,0.00248342,1697.9,1697.5,3.0711]
[1659249925987,0.00248342,1697.9,1697.5,6.5711]
[1659249926192,0.24452821,1697.7,1697.5,3.0711]
[1659249928007,0.24701163,1697.7,1697.5,3.0711]
[1659249928211,3.14505835,1697.7,1697.2,9.3273]
[1659249928432,3.14505835,1697.7,1697.2,6.0]
[1659249929139,0.00248713,1697.6,1697.2,6.0]
[1659249929294,0.00248713,1697.6,1697.2,6.3397868]
[1659249931434,0.24452821,1697.4,1697.2,6.3397868]
[1659249935363,0.24452821,1697.4,1697.3,5.70522882]
[1659249935666,0.24452821,1697.4,1697.3,12.15547503]
[1659249936043,0.24452821,1697.4,1697.3,12.03924621]
[1659249937426,0.24452821,1697.4,1697.3,7.03924621]
[1659249938253,0.24142727,1697.4,1697.3,3.7259]
[1659249939838,0.24142727,1697.4,1697.2,6.3397868]
[1659249940040,0.24142727,1697.4,1697.2,9.6239868]
[1659249941848,0.24142727,1697.4,1697.2,10.0662868]
[1659249943347,0.24142727,1697.4,1697.2,9.6239868]
[1659249952532,0.24142727,1697.4,1697.2,13.1239868]
[1659249952904,0.24142727,1697.4,1697.2,9.6239868]
[1659249953924,0.24142727,1697.4,1697.2,13.1239868]
[1659249954153,0.24142727,1697.4,1697.2,9.6239868]
[1659249956359,0.24142727,1697.4,1697.3,7.31334621]
[1659249956562,0.24142727,1697.4,1697.3,11.11334621]
[1659249956783,0.24142727,1697.4,1697.3,11.41334621]
[1659249956925,0.24142727,1697.4,1697.3,7.91334621]
[1659249957264,0.24142727,1697.4,1697.3,0.91827798]
[1659249963610,2.727e-05,1697.4,1697.3,3.8163247]
[1659249963796,0.05,1697.8,1697.7,6.81622882]
[1659249964118,0.05,1698.2,1697.8,0.11622882]